Cogmind - Beta 17 @@@ ROGUE MODE // 2026.07.14 @ 17:32:44 Player: rz Result: Destroyed by S-27 Virus with Autogun Performance ------------- Evolutions (6) 3000 Regions Visited (13) 2600 Robots Destroyed (191) 955 Value Destroyed (7542) 7542 Prototype IDs (9) 180 Alien Tech Used (0) 0 Bonus (1825) 1825 TOTAL SCORE: 16102 Bonus ------- High Alert Combat Kills 1005 Follower Combat Kills 20 Registered with UFD 300 Met Optimus in HQ 500 Cogmind --------- Core Integrity 0/1150 Matter 67/300 Energy 100/100 System Corruption 20% Temperature Cool (0) Movement Flying (37) Location -4/Factory Parts ------- > --- POWER (2) -------- (None) > --- PROPULSION (7) --- Cooled Field Propulsion Drive > --- UTILITY (8) ------ (None) > --- WEAPON (2) ------- (None) > --- INVENTORY (5) ---- Flexi-carbon Leg Improved Gyrokinetic Inverter Advanced Heat Sink High-powered Tractor Beam DRS Beacon (Ready) Peak State ------------ > --- POWER ------------ Neutrino Core Light Antimatter Reactor > --- PROPULSION ------- Light Treads Medium Treads Medium Treads Medium Treads Improved Medium Treads Improved Medium Treads Improved Medium Treads > --- UTILITY ---------- Advanced Heat Sink Huge Storage Unit Improved Signal Interpreter Advanced Target Analyzer Hardened Light Armor Plating Medium Reactive Plating Advanced Thermal Shield Improved Hardlight Generator > --- WEAPON ----------- Enhanced Gauss Cannon Hypervelocity Gauss Cannon > --- INVENTORY -------- Angular Momentum Engine Neutrino Core Neutrino Core Neutrino Core Neutrino Core Neutrino Core Medium Treads Advanced Heat Sink Advanced Heat Sink Matter Compressor Advanced ECM Suite Advanced Reaction Control System Improved Component Analysis Suite High-powered Tractor Beam Magnetic Acceleration Cannon Magnetic Acceleration Cannon Magnetic Acceleration Cannon Magnetic Acceleration Cannon Magnetic Acceleration Cannon Magnetic Acceleration Cannon Magnetic Acceleration Cannon Magnetic Acceleration Cannon DRS Beacon [Rating: 99] Favorites ----------- Power Heavy Ion Engine Engine Heavy Ion Engine Power Core Neutrino Core Reactor Light Antimatter Reactor Propulsion Light Treads Treads Light Treads Leg Flexi-carbon Leg Wheel Wheel Flight Unit Cooled Field Propulsion Drive Utility Huge Storage Unit Device Scrap Suit Storage Huge Storage Unit Processor Signal Interpreter Protection Medium Armor Plating Weapon Flak Cannon Energy Gun Medium Laser Energy Cannon HERF Cannon Ballistic Gun Overtuned Railgun Ballistic Cannon Flak Cannon Launcher Grenade Launcher Build | -11 -10 -9 -8 -8 -8 -8 -6 -5 -5 -5 -5 -4 -4 ------- Run | Yrd Mat Mat Mat Sto Rec Scr Fac Fac Upp Upp War Pro Fac Slots Evolved 12 | . . 2 2 . . . 4 2 . . . . 2 Power 1 | . . . . . . . . . . . . . 1 Propulsion 5 | . . 1 1 . . . 2 . . . . . 1 Utility 6 | . . 1 1 . . . 2 2 . . . . . Weapon . | . . . . . . . . . . . . . . Parts Attached 138 | 6 10 16 1 3 . 10 10 22 1 8 . 1 50 Power 21 | 1 1 5 . . . . 1 3 . . . 1 9 Engine 11 | 1 1 5 . . . . 1 2 . . . . 1 Core 8 | . . . . . . . . 1 . . . . 7 Reactor 2 | . . . . . . . . . . . . 1 1 Propulsion 49 | 2 3 3 1 . . 4 4 7 . 3 . . 22 Treads 31 | 2 3 3 1 . . 4 4 7 . 3 . . 4 Leg 8 | . . . . . . . . . . . . . 8 Wheel 8 | . . . . . . . . . . . . . 8 Hover . | . . . . . . . . . . . . . . Flight 2 | . . . . . . . . . . . . . 2 Utility 43 | 1 4 3 . 1 . 2 5 12 1 5 . . 9 Device 24 | . . 1 . . . . 3 7 1 5 . . 7 Storage 2 | 1 1 . . . . . . . . . . . . Processor 6 | . 3 . . . . 1 . 1 . . . . 1 Hackware . | . . . . . . . . . . . . . . Protection 11 | . . 2 . 1 . 1 2 4 . . . . 1 Artifact . | . . . . . . . . . . . . . . Weapon 25 | 2 2 5 . 2 . 4 . . . . . . 10 Energy Gun 4 | 2 . 2 . . . . . . . . . . . Energy Cannon 1 | . . . . . . . . . . . . . 1 Ballistic Gun 2 | . . . . . . 2 . . . . . . . Ballistic Cannon 16 | . 2 1 . 2 . 2 . . . . . . 9 Launcher 2 | . . 2 . . . . . . . . . . . Special Weapon . | . . . . . . . . . . . . . . Impact Weapon . | . . . . . . . . . . . . . . Slashing Weapon . | . . . . . . . . . . . . . . Piercing Weapon . | . . . . . . . . . . . . . . Special Melee Weapon . | . . . . . . . . . . . . . . Unidentified Prototypes 3 | . . 1 . . . . . 1 . . . . 1 Parts Lost 72 | . . 11 . . . . 2 10 1 2 . . 46 Power 12 | . . 2 . . . . . . 1 . . . 9 Propulsion 32 | . . 4 . . . . . 6 . 1 . . 21 Utility 17 | . . 1 . . . . 2 4 . 1 . . 9 Weapon 11 | . . 4 . . . . . . . . . . 7 Highest Loss Streak 19 | . . 4 . . . . 2 3 1 2 . . 19 To Critical Strikes 2 | . . 1 . . . . . . . . . . 1 Average Backups 20 | 2 9 17 19 22 24 23 21 22 22 22 24 24 15 Power 2 | . 1 2 5 5 5 3 2 3 3 3 3 2 2 Propulsion 4 | 1 4 3 3 3 3 5 6 4 4 3 2 2 2 Utility 4 | . . 2 3 4 4 6 5 4 2 4 7 7 5 Weapon 8 | . 3 7 8 10 11 8 7 10 12 12 12 12 5 Tool/Special . | . . . . . . . . . . . . . . Unused Backups 43 | . 3 . . . 1 18 6 1 . . . 1 13 Power 7 | . . . . . . 3 1 . . . . 1 2 Propulsion 10 | . 2 . . . . 3 1 1 . . . . 3 Utility 8 | . . . . . . 3 1 . . . . . 4 Weapon 18 | . 1 . . . 1 9 3 . . . . . 4 Tool/Special . | . . . . . . . . . . . . . . Average Slot Usage (%) 92 | . 96 94 98 100 98 99 92 83 93 92 94 94 78 Engine 6 | . 11 10 9 9 9 9 6 . 1 5 5 4 1 Core 1 | . . . . . . . . 4 3 . . . 5 Treads 31 | . 27 32 36 36 36 35 39 34 35 35 35 35 12 Device 8 | . . 3 9 3 . . 10 18 23 21 23 23 14 Storage 7 | . 14 11 9 9 9 9 6 5 5 5 5 5 4 Processor 7 | . 13 11 9 9 9 8 . 1 5 5 5 5 9 Protection 8 | . . 3 7 14 18 18 15 3 5 4 5 5 2 Energy Gun 2 | . 11 9 18 6 . . . . . . . . . Ballistic Gun 4 | . . . . . . 2 13 11 11 11 11 11 . Ballistic Cannon 8 | . 16 11 . 11 16 15 . . . . . . 9 Peak Build Rating 99 | 6 11 15 18 23 23 41 64 91 84 92 88 90 99 Average Rating 47 | 4 9 12 17 21 22 28 59 80 83 85 88 88 75 On Entrance 44 | . 6 8 15 18 23 18 41 64 84 82 88 88 90 Avg Prop Armor Cover (%) 13 | . . . . . . . . . . . . . 13 Naked Turns . | . . . . . . . . . . . . . . Heaviest Build 162 | 12 89 95 99 110 110 112 123 136 136 136 136 139 162 Greatest Support 194 | 40 46 66 86 86 86 86 150 166 166 176 166 166 194 Greatest Overweight (x) 42 | . 1 1 1 1 1 2 1 1 . . . . 42 Average Overweight (x) . | . . 1 1 1 1 1 . . . . . . 1 Largest Inventory Capacity 25 | 8 25 25 25 25 25 25 25 25 25 25 25 25 25 Average Capacity 24 | 6 17 25 25 25 25 25 25 25 25 25 25 25 23 Most Carried 25 | 4 15 21 20 23 25 25 25 25 24 25 25 25 24 Average Carried 21 | 2 9 17 19 22 24 24 24 23 23 23 25 24 16 Final Capacity 25 | 8 25 25 25 25 25 25 25 25 25 25 25 25 5 Final Carried 25 | 4 14 21 20 23 25 25 25 24 23 25 25 25 5 Scrap Suit Usage (%) 9 | . . . . . . . 90 15 . . . . . Parts Cannibalized 6 | . . . . . . . 2 4 . . . . . Class Distribution -------------------- 75% | Mutant 15% | Scavenger-Mutant 6% | Scavenger-Skirmisher Dominant Class ---------------- Mutant | -10/Materials Mutant | -9/Materials Mutant | -8/Materials Mutant | -8/Storage Mutant | -8/Recycling Mutant | -8/Scraptown Mutant | -6/Factory Scavenger-Skirmisher | -5/Factory Scavenger-Mutant | -5/Upper Caves Mutant | -5/Upper Caves Mutant | -5/Warlord Mutant | -4/Proximity Caves Scavenger-Mutant | -4/Factory Resources | -11 -10 -9 -8 -8 -8 -8 -6 -5 -5 -5 -5 -4 -4 ----------- Run | Yrd Mat Mat Mat Sto Rec Scr Fac Fac Upp Upp War Pro Fac Matter Collected 6468 | 91 294 671 . . 58 99 440 1321 442 419 . 191 2442 Remotely 1810 | . . . . . . . . 693 . . . . 1117 Salvage Created 7237 | . 522 1090 . . . . 912 1995 221 409 . 340 1748 Parts 345 | . 29 51 . . . . 50 101 10 14 . 21 69 Haulers Intercepted 10 | . 2 4 . . . . 3 . . . . . 1 Recyclers Shooed 13 | . 1 1 . . . . 3 1 . . . . 7 Parts Field Recycled . | . . . . . . . . . . . . . . Retrieved Matter . | . . . . . . . . . . . . . . Parts Self-Destructed 49 | . . . . . . . . . 10 17 . 22 . Prevented 2 | . . . . . . . . . . 1 . 1 . Parts Restored . | . . . . . . . . . . . . . . Kills | -11 -10 -9 -8 -8 -8 -8 -6 -5 -5 -5 -5 -4 -4 ------- Run | Yrd Mat Mat Mat Sto Rec Scr Fac Fac Upp Upp War Pro Fac Combat Hostiles Destroyed 146 | . 15 23 . . . . 15 33 6 6 . 10 38 Guns 83 | . 12 6 . . . . 14 29 6 6 . 10 . Cannons 53 | . 2 13 . . . . . . . . . . 38 AOE 9 | . . 4 . . . . 1 4 . . . . . Classes Destroyed 15 | . 6 4 . . . . 2 . . 1 . . 2 Worker 10 | . 1 1 . . . . 1 4 . . . . 3 Builder 14 | . . 1 . . . . 1 4 . . . . 8 Tunneler 1 | . . . . . . . . . . . . . 1 Hauler 10 | . 2 4 . . . . 3 . . . . . 1 Recycler 5 | . 1 2 . . . . . 1 . . . . 1 Watcher 5 | . 1 . . . . . 3 1 . . . . . Swarmer 45 | . 9 3 . . . . 10 6 4 . . 8 5 Grunt 50 | . 6 12 . . . . . 12 . 4 . 1 15 Brawler 4 | . . 1 . . . . . 2 . . . . 1 Duelist 3 | . . 2 . . . . . . . . . . 1 Sentry 15 | . . 5 . . . . . 4 . 1 . 1 4 Specialist 1 | . . . . . . . . . . . . . 1 Hunter 5 | . . . . . . . 2 . . . . . 3 Programmer 22 | . . . . . . . 3 9 2 . . . 8 Mutant 1 | . . . . . . . . . . 1 . . . Best Kill Streak 12 | . 4 7 . . . . 5 8 6 4 . 4 12 Combat Bots Only 7 | . 4 7 . . . . 4 6 6 4 . 4 6 Max Kills in Single Turn 5 | . 2 2 . . . . 3 5 1 1 . 2 2 Gunslinging 1 | . 1 . . . . . 1 1 . . . 1 . Exploded 2 | . . 1 . . . . 1 2 . . . . . Melee . | . . . . . . . . . . . . . . Uniques/NPCs Destroyed . | . . . . . . . . . . . . . . Combat | -11 -10 -9 -8 -8 -8 -8 -6 -5 -5 -5 -5 -4 -4 -------- Run | Yrd Mat Mat Mat Sto Rec Scr Fac Fac Upp Upp War Pro Fac Hostile Shots Fired 1202 | . 50 154 . . . . 40 142 43 33 . 36 704 Missed 355 | . 11 29 . . . . 9 38 15 11 . 18 224 Hits 847 | . 39 125 . . . . 31 104 28 22 . 18 480 Melee 13 | . . 12 . . . . . 1 . . . . . Projectile 834 | . 39 113 . . . . 31 103 28 22 . 18 480 AOE 3 | . . . . . . . . 3 . . . . . Critical Strikes 31 | . 1 5 . . . . 1 3 2 1 . . 18 Part Disruptions 4 | . . . . . . . . 1 . . . . 3 Damage Taken 12901 | . 398 1759 . 32 . . 978 2184 279 388 . 101 6782 Core 1774 | . 80 332 . 32 . . 37 139 . . . 4 1150 Absorbed by Shields 1284 | . . . . . . . 68 220 72 18 . 90 816 Redirected to Shielding 53 | . . 50 . . . . . 3 . . . . . Ignored by Resistances 1042 | . . . . . . . 3 . 103 21 . 92 823 Regen/Repaired (Parts) 55 | . . . . . . . 15 40 . . . . . Core Remaining (%) 76 | 100 68 17 . . . 94 95 . . . . 85 . Volleys Fired 469 | . 41 79 . . . . 35 98 20 15 . 19 162 Largest 2 | . 2 2 . . . . 2 2 2 2 . 2 2 Hottest 100 | . 100 90 . . . . 72 72 72 72 . 72 98 Shots Fired 907 | . 82 155 . . . . 72 191 37 31 . 38 301 Gun 489 | . 50 70 . . . . 72 191 37 31 . 38 . Cannon 413 | . 32 80 . . . . . . . . . . 301 Launcher 5 | . . 5 . . . . . . . . . . . Special . | . . . . . . . . . . . . . . Kinetic 782 | . 32 80 . . . . 72 191 37 31 . 38 301 Thermal 120 | . 50 70 . . . . . . . . . . . Explosive 5 | . . 5 . . . . . . . . . . . Electromagnetic . | . . . . . . . . . . . . . . Robot Hit Streak 20 | . 16 13 . . . . 17 14 7 6 . 9 20 Robot Miss Streak 8 | . 3 3 . . . . 3 3 8 3 . 2 4 Penetration Max 2 | . . . . . . . 1 1 . 2 . 2 1 Secondary Targets 16 | . 4 . . . . . 1 4 1 2 . 4 . Max Gunslinging Chain 1 | . 1 . . . . . 1 1 1 1 . 1 . Shots Hit Robots 590 | . 52 106 . . . . 50 119 19 22 . 22 200 Core Hits 290 | . 24 47 . . . . 27 68 8 11 . 13 92 Critical Kills 17 | . . . . . . . 2 8 1 1 . 2 3 Critical Parts Destroyed 29 | . . . . . . . 4 8 1 2 . 2 12 Critical Strikes 90 | . 4 1 . . . . 6 16 2 3 . 4 54 Burn 3 | . 3 . . . . . . . . . . . . Destroy 47 | . . . . . . . 6 16 2 3 . 4 16 Blast 40 | . 1 1 . . . . . . . . . . 38 Melee Attacks . | . . . . . . . . . . . . . . Impact . | . . . . . . . . . . . . . . Slashing . | . . . . . . . . . . . . . . Piercing . | . . . . . . . . . . . . . . Sneak Attacks . | . . . . . . . . . . . . . . Combat Hostiles . | . . . . . . . . . . . . . . Follow-up Attacks . | . . . . . . . . . . . . . . Damage Inflicted 19281 | . 783 1988 . . . . 2189 5401 658 910 . 823 6529 Guns 9640 | . 474 578 . . . . 1734 4463 658 910 . 823 . Cannons 7648 | . 309 985 . . . . . . . . . . 6354 Explosions 1988 | . . 425 . . . . 455 938 . . . . 170 Melee . | . . . . . . . . . . . . . . Ramming 5 | . . . . . . . . . . . . . 5 Kinetic 16236 | . 309 985 . . . . 1734 4463 658 910 . 823 6354 Thermal 2320 | . 474 578 . . . . 261 837 . . . . 170 Explosive 637 | . . 425 . . . . 194 18 . . . . . Electromagnetic 83 | . . . . . . . . 83 . . . . . Impact . | . . . . . . . . . . . . . . Slashing . | . . . . . . . . . . . . . . Piercing . | . . . . . . . . . . . . . . Highest Corruption 20 | . . 8 . 3 3 . 12 10 12 12 6 . 20 Average Corruption 7 | . . 6 . 2 3 . 10 4 10 10 6 . 9 Corruption Purged 6 | . . . . . . . . . . 6 . . . Corruption Blocked . | . . . . . . . . . . . . . . Effects 184 | . . 27 . 1 9 . 14 28 28 28 2 . 47 Message Errors 42 | . . 4 . . 3 . 3 10 4 11 . . 7 Matter Fused 37 | . . 4 . . 2 . 4 8 7 4 1 . 7 Heat Flow Errors 24 | . . 2 . 1 . . 1 3 3 4 1 . 9 Energy Discharges 23 | . . 6 . . 2 . 1 1 6 3 . . 4 Parts Fused 3 | . . . . . . . 1 1 . . . . 1 Data Loss (minor) 23 | . . 5 . . 1 . 2 3 5 1 . . 6 Data Loss (major) 6 | . . 1 . . 1 . . . 2 1 . . 1 Misfires 9 | . . 3 . . . . 2 . 1 2 . . 1 Alerts 3 | . . 1 . . . . . . . 1 . . 1 Misdirections 2 | . . . . . . . . . . . . . 2 Weapon Failures 12 | . . 1 . . . . . 2 . 1 . . 8 Overload Shots . | . . . . . . . . . . . . . . Overflow Damage 361 | . 6 44 . . . . 165 14 . . . . 132 Projectiles 159 | . 6 21 . . . . . . . . . . 132 Explosions 202 | . . 23 . . . . 165 14 . . . . . Melee . | . . . . . . . . . . . . . . Knockbacks 69 | . . 10 . . . . . . . . . . 59 Impact . | . . . . . . . . . . . . . . Kinetic 59 | . . 8 . . . . . . . . . . 51 Secondary 10 | . . 2 . . . . . . . . . . 8 Self-Inflicted Damage 670 | . . 89 . . . . 469 72 . . . . 40 Shots 13 | . . 3 . . . . 6 2 . . . . 2 Rammed 1 | . . . . . . . . . . . . . 1 Targets Rammed 1 | . . . . . . . . . . . . . 1 Kicked . | . . . . . . . . . . . . . . Crushed . | . . . . . . . . . . . . . . Highest Temperature 300 | . 197 223 . 236 . . 300 203 210 231 229 . 253 Average Temperature 75 | . 74 77 . 123 . . 84 48 78 74 129 . 77 Received Heat Transfer 2061 | . 147 588 . . . . . 362 . 167 . 12 785 Effects 1 | . . . . 1 . . . . . . . . . Energy Bleed 1 | . . . . 1 . . . . . . . . . Siege Activations . | . . . . . . . . . . . . . . Martial Activations . | . . . . . . . . . . . . . . Shielding Activations . | . . . . . . . . . . . . . . Robots Disrupted . | . . . . . . . . . . . . . . Combat Hostiles . | . . . . . . . . . . . . . . Robots Corrupted . | . . . . . . . . . . . . . . Combat Hostiles . | . . . . . . . . . . . . . . Parts Fried . | . . . . . . . . . . . . . . Impact Corruptions 1 | . . . . . . . . . . . . . 1 Robots Melted 2 | . 1 1 . . . . . . . . . . . Combat Hostiles 1 | . 1 . . . . . . . . . . . . Parts Melted 15 | . 7 6 . . . . . 2 . . . . . Heat Transferred 4127 | . 1628 1549 . . . . 200 650 . . . . 100 Parts Sabotaged . | . . . . . . . . . . . . . . Parts Stolen . | . . . . . . . . . . . . . . Parts Stripped . | . . . . . . . . . . . . . . Power Chain Reactions 1 | . . . . . . . . 1 . . . . . Alert | -11 -10 -9 -8 -8 -8 -8 -6 -5 -5 -5 -5 -4 -4 ------- Run | Yrd Mat Mat Mat Sto Rec Scr Fac Fac Upp Upp War Pro Fac Maximum Alert Level 5 | . . 1 . . . . 2 5 . . . . 3 Low Security (%) 70 | 100 100 99 100 100 100 . 76 30 . . . . 47 Level 1 7 | . . . . . . . 10 8 . . . . 21 Level 2 9 | . . . . . . . 12 6 . . . . 30 Level 3 5 | . . . . . . . . 23 . . . . . Level 4 5 | . . . . . . . . 23 . . . . . Level 5 1 | . . . . . . . . 6 . . . . . High Security . | . . . . . . . . . . . . . . Max Security . | . . . . . . . . . . . . . . Peak Influence 1691 | . 162 202 66 14 7 . 480 1691 . . . . 728 Initial 226 | . . . 66 14 . . . 226 . . . . 209 Average 263 | . 61 100 55 1 . . 136 736 . . . . 273 Influence Increases 6269 | . 417 674 . 8 7 . 797 2148 170 110 . 265 1673 Destroy 0b10 Robot/C 2920 | . 300 460 . . . . 300 660 120 100 . 220 760 Destroy 0b10 Robot/NC 235 | . 25 40 . . . . 40 50 . . . 10 70 Destroy Leader 618 | . 76 138 . . . . 70 132 20 10 . 20 152 Allied During Kill 15 | . . . . . . . . . . . . 15 . Successful Hack 27 | . . . . 8 7 . 12 . . . . . . Disable Machine 615 | . 15 . . . . . 240 300 . . . . 60 Destroy Structure 784 | . 1 36 . . . . 135 506 . . . . 106 Advance Influence 150 | . . . . . . . . . . . . . 150 Lose Combat Pursuer 405 | . . . . . . . . . 30 . . . 375 Active Sensor Use 500 | . . . . . . . . 500 . . . . . Influence Decreases 5551 | . 417 515 123 44 7 . 333 924 970 507 491 170 1050 Entered New Map 1675 | . . . 93 22 . . . 238 626 169 491 . 36 Time Decay 3130 | . 417 419 30 22 7 . 313 586 334 318 . 130 554 Lost Part 706 | . . 96 . . . . 20 100 10 20 . . 460 Lost Ally 40 | . . . . . . . . . . . . 40 . Squads Dispatched 47 | . 3 4 1 . . . 3 18 . . . . 18 Investigation 14 | . 2 2 . . . . . 8 . . . . 2 Extermination 12 | . . . . . . . 3 4 . . . . 5 Reinforcement 15 | . 1 2 1 . . . . 3 . . . . 8 Assault 3 | . . . . . . . . 3 . . . . . Garrison 3 | . . . . . . . . . . . . . 3 Intercept . | . . . . . . . . . . . . . . Searches Triggered . | . . . . . . . . . . . . . . Construction Impeded 7 | . . . . . . . . 3 . . . . 4 Haulers Reinforced 1 | . . . . . . . . . . . . . 1 Active Scanning Responses 5 | . . . . . . . . 5 . . . . . Cargo Convoy Interrupts . | . . . . . . . . . . . . . . Stealth | -11 -10 -9 -8 -8 -8 -8 -6 -5 -5 -5 -5 -4 -4 --------- Run | Yrd Mat Mat Mat Sto Rec Scr Fac Fac Upp Upp War Pro Fac Distress Signals 10 | . 1 4 1 . . . . 1 . . . . 3 Communications Jammed . | . . . . . . . . . . . . . . Distress Signals . | . . . . . . . . . . . . . . Times Spotted 239 | . 27 33 1 . . . 20 40 8 7 . 12 91 Peak Tracking Total 15 | . 4 8 2 . . . 4 6 4 5 . 4 15 Tactical Retreats 17 | . . . . . . . . . 2 . . . 15 ECM-based Alert Blocks 12 | . . . . . . . . . . . . . 12 Traps | -11 -10 -9 -8 -8 -8 -8 -6 -5 -5 -5 -5 -4 -4 ------- Run | Yrd Mat Mat Mat Sto Rec Scr Fac Fac Upp Upp War Pro Fac Traps Triggered 19 | . 4 4 . 3 . . 5 1 . . . . 2 Indirectly . | . . . . . . . . . . . . . . Trap Hack Attempts . | . . . . . . . . . . . . . . Triggered . | . . . . . . . . . . . . . . Disarmed . | . . . . . . . . . . . . . . Reprogrammed . | . . . . . . . . . . . . . . Reused . | . . . . . . . . . . . . . . Traps Extracted . | . . . . . . . . . . . . . . Installed . | . . . . . . . . . . . . . . Triggered . | . . . . . . . . . . . . . . Machines | -11 -10 -9 -8 -8 -8 -8 -6 -5 -5 -5 -5 -4 -4 ---------- Run | Yrd Mat Mat Mat Sto Rec Scr Fac Fac Upp Upp War Pro Fac Machines Disabled 41 | . 1 . . . . . 16 20 . . . . 4 Max in Single Turn 6 | . 1 . . . . . 6 5 . . . . 3 Machines Repaired . | . . . . . . . . . . . . . . Machines Dismantled . | . . . . . . . . . . . . . . Machines Sabotaged . | . . . . . . . . . . . . . . Overloaded Fab Kills . | . . . . . . . . . . . . . . Hacking | -11 -10 -9 -8 -8 -8 -8 -6 -5 -5 -5 -5 -4 -4 --------- Run | Yrd Mat Mat Mat Sto Rec Scr Fac Fac Upp Upp War Pro Fac Machines Accessed 27 | . . 2 . 1 4 9 2 4 1 2 . . 2 Terminals 4 | . . . . 1 2 . . . . 1 . . . Fabricators . | . . . . . . . . . . . . . . Repair Stations . | . . . . . . . . . . . . . . Recycling Units 9 | . . 1 . . 2 . 1 3 . . . . 2 Scanalyzers 3 | . . 1 . . . . 1 1 . . . . . Garrison Access . | . . . . . . . . . . . . . . Total Hacks 95 | . . 4 . 1 7 67 4 6 1 2 . . 3 Successful 82 | . . 2 . 1 2 67 1 4 1 2 . . 2 Failed 13 | . . 2 . . 5 . 3 2 . . . . 1 Catastrophic 2 | . . . . . 1 . 1 . . . . . . Database Lockouts . | . . . . . . . . . . . . . . Manual 15 | . . . . 3 2 . 2 5 . . . . 3 Terminals 6 | . . . . 1 4 . . . . 1 . . . Fabricators . | . . . . . . . . . . . . . . Repair Stations . | . . . . . . . . . . . . . . Recycling Units 14 | . . 1 . . 3 . 2 5 . . . . 3 Scanalyzers 6 | . . 3 . . . . 2 1 . . . . . Garrison Access . | . . . . . . . . . . . . . . Terminal Hacks 72 | . . . . 1 1 67 . . 1 2 . . . Record 63 | . . . . . . 61 . . 1 1 . . . Robot Analysis 6 | . . . . . . 6 . . . . . . . Open Door 1 | . . . . . . . . . . 1 . . . Branch Access Points 2 | . . . . 1 1 . . . . . . . . Fabricator Hacks . | . . . . . . . . . . . . . . Repair Station Hacks . | . . . . . . . . . . . . . . Recycling Unit Hacks 2 | . . 1 . . 1 . . . . . . . . Retrieve Components 2 | . . 1 . . 1 . . . . . . . . Scanalyzer 3 | . . 1 . . . . 1 1 . . . . . Retrieve Study 3 | . . 1 . . . . 1 1 . . . . . Garrison Access Hacks . | . . . . . . . . . . . . . . Unauthorized Hacks 5 | . . . . . . . . 3 . . . . 2 Terminals . | . . . . . . . . . . . . . . Fabricators . | . . . . . . . . . . . . . . Repair Stations . | . . . . . . . . . . . . . . Recycling Units 5 | . . . . . . . . 3 . . . . 2 Fedlink 5 | . . . . . . . . 3 . . . . 2 Scanalyzers . | . . . . . . . . . . . . . . Garrison Access . | . . . . . . . . . . . . . . Data Cores Recovered . | . . . . . . . . . . . . . . Used . | . . . . . . . . . . . . . . Hacking Detections 11 | . . 1 . 1 4 . 2 3 . . . . . Full Trace Events . | . . . . . . . . . . . . . . Feedback Events . | . . . . . . . . . . . . . . Feedback Blocked . | . . . . . . . . . . . . . . Robot Schematics Acquired . | . . . . . . . . . . . . . . Robots Built . | . . . . . . . . . . . . . . Authchips . | . . . . . . . . . . . . . . Time . | . . . . . . . . . . . . . . Total Robot Build Rating . | . . . . . . . . . . . . . . Part Schematics Acquired . | . . . . . . . . . . . . . . Parts Built . | . . . . . . . . . . . . . . Authchips . | . . . . . . . . . . . . . . Time . | . . . . . . . . . . . . . . Total Part Build Rating . | . . . . . . . . . . . . . . Part Studies Acquired 3 | . . 1 . . . . 1 1 . . . . . Parts Repaired . | . . . . . . . . . . . . . . Time . | . . . . . . . . . . . . . . Parts Recycled . | . . . . . . . . . . . . . . Recycled Matter . | . . . . . . . . . . . . . . Retrieved Matter . | . . . . . . . . . . . . . . Retrieved Components 6 | . . 5 . . 1 . . . . . . . . Parts Scanalyzed . | . . . . . . . . . . . . . . Part Schematics Acquired . | . . . . . . . . . . . . . . Parts Damaged . | . . . . . . . . . . . . . . Bothacking | -11 -10 -9 -8 -8 -8 -8 -6 -5 -5 -5 -5 -4 -4 ------------ Run | Yrd Mat Mat Mat Sto Rec Scr Fac Fac Upp Upp War Pro Fac Used RIF Installer . | . . . . . . . . . . . . . . Robots Hacked . | . . . . . . . . . . . . . . Non-combat . | . . . . . . . . . . . . . . Combat . | . . . . . . . . . . . . . . Robot Hacks Applied . | . . . . . . . . . . . . . . Relay Couplers Released 3 | . . . . . . . . . . . . . 3 Programmers 3 | . . . . . . . . . . . . . 3 Fabnet Peak Effective % . | . . . . . . . . . . . . . . Robots Rewired 2 | . . . . . . . . . . 2 . . . Allies Hacked . | . . . . . . . . . . . . . . Hacks Repelled . | . . . . . . . . . . . . . . Allies | -11 -10 -9 -8 -8 -8 -8 -6 -5 -5 -5 -5 -4 -4 -------- Run | Yrd Mat Mat Mat Sto Rec Scr Fac Fac Upp Upp War Pro Fac Total Allies 2 | . . . . . . . . . . 2 . . . Largest Group 2 | . . . . . . . . . . 2 2 2 . Highest-Rated Group 62 | . . . . . . . . . . 62 62 62 . Highest-Rated Ally 31 | . . . . . . . . . . 31 31 31 . Initial UFD Resources 47 | . . . . . . . 24 28 44 44 44 47 47 Total Orders . | . . . . . . . . . . . . . . Ally Attacks 20 | . . . . . . . . . . . . 20 . Total Damage 104 | . . . . . . . . . . . . 104 . Kills 3 | . . . . . . . . . . . . 3 . Allies Corrupted . | . . . . . . . . . . . . . . Allies Melted . | . . . . . . . . . . . . . . Intel | -11 -10 -9 -8 -8 -8 -8 -6 -5 -5 -5 -5 -4 -4 ------- Run | Yrd Mat Mat Mat Sto Rec Scr Fac Fac Upp Upp War Pro Fac Active Infowar (turns) 2840 | . . . . . . . . 1527 750 237 . . 326 Sensors 1363 | . . . . . . . . 376 750 237 . . . A.S.S. 1151 | . . . . . . . . 1151 . . . . . ECM 326 | . . . . . . . . . . . . . 326 Robot Analysis Total 6 | . . . . . . 6 . . . . . . . Derelict Logs Recovered 3 | . . . . . . . . . 1 2 . . . Drone Launches . | . . . . . . . . . . . . . . Drone Recoveries . | . . . . . . . . . . . . . . Exploration | -11 -10 -9 -8 -8 -8 -8 -6 -5 -5 -5 -5 -4 -4 ------------- Run | Yrd Mat Mat Mat Sto Rec Scr Fac Fac Upp Upp War Pro Fac Turns Passed 14009 | 66 1319 1528 61 174 490 3676 1217 1823 750 715 143 315 1732 Spaces Moved 6240 | 37 566 509 25 70 203 1527 613 802 435 402 90 172 789 Core 9 | 5 . . . . . . . . . . . . 4 Treads 5707 | 32 566 509 25 70 203 1527 613 802 435 402 90 172 261 Legs 27 | . . . . . . . . . . . . . 27 Wheels 279 | . . . . . . . . . . . . . 279 Hover . | . . . . . . . . . . . . . . Flight 218 | . . . . . . . . . . . . . 218 Fastest Speed 31 | 50 160 240 240 240 240 232 154 155 160 160 160 160 31 Average Speed 189 | 145 198 240 240 240 240 236 156 159 160 160 160 160 136 Slowest Speed 2150 | 160 240 240 240 240 240 320 232 237 160 160 160 160 2150 Overloaded Moves 169 | . . . . . . . . . . . . . 169 Propulsion Burnouts . | . . . . . . . . . . . . . . Robots Hopped 3 | . . . . . . . . . . . . . 3 Potential Cave-ins . | . . . . . . . . . . . . . . Cave-ins Triggered . | . . . . . . . . . . . . . . Exploration Rate (%) 38 | 4 93 56 4 16 42 91 23 23 58 58 18 35 23 Regions Visited 13 Branch Regions 7 Pre-discovered Areas 1 | . . . . . . . . 1 . . . . . Known Exits Taken 11 | . 1 1 1 1 1 1 . 1 1 1 1 1 . Unknown Exits Taken 2 | 1 . . . . . . 1 . . . . . . Scrap Searched 13 | . . . . . . 9 . . 1 2 . 1 . Spaces Dug 18 | . . . . . . . . 15 . . . . 3 Terrain Destroyed 641 | . . 30 . . . . 148 318 44 29 . 21 51 Melee . | . . . . . . . . . . . . . . Projectile 314 | . . 2 . . . . 44 130 44 29 . 21 44 AOE 327 | . . 28 . . . . 104 188 . . . . 7 Terrain Rammed . | . . . . . . . . . . . . . . Walls Destroyed . | . . . . . . . . . . . . . . Machines Disabled . | . . . . . . . . . . . . . . Actions | -11 -10 -9 -8 -8 -8 -8 -6 -5 -5 -5 -5 -4 -4 --------- Run | Yrd Mat Mat Mat Sto Rec Scr Fac Fac Upp Upp War Pro Fac Total 7726 | 46 683 661 27 75 210 1598 840 1247 472 460 89 194 1124 Wait 621 | . 40 33 . . . 6 157 285 11 8 . . 81 Move 6222 | 36 565 508 24 69 202 1526 612 801 434 401 89 171 784 Hop 2 | . . . . . . . . . . . . . 2 Pick Up 124 | 4 16 19 1 3 3 23 13 13 1 5 . 1 22 Fast Attach 63 | 6 5 3 . . . 6 3 9 2 5 . . 24 Attach 73 | . 1 13 2 . . 3 5 13 1 5 . . 30 Detach 11 | . . . . . 2 . 1 3 . 2 . . 3 Swap 36 | . 6 4 . 3 . 3 3 11 . . . 1 5 Drop 90 | . 9 2 . . 3 31 11 14 3 5 . 2 10 Fire 469 | . 41 79 . . . . 35 98 20 15 . 19 162 Melee . | . . . . . . . . . . . . . . Ram 1 | . . . . . . . . . . . . . 1 Kick . | . . . . . . . . . . . . . . Crush . | . . . . . . . . . . . . . . Escape Stasis . | . . . . . . . . . . . . . . Rewire 14 | . . . . . . . . . . 14 . . . Trap . | . . . . . . . . . . . . . . Miscellaneous . | . . . . . . . . . . . . . . Route ------- -11/Scrapyard -10/Materials (discovered 5 exits: *Mat x3 / [*Min x2]) -9/Materials (discovered 3 exits: *Mat x2 / *Min) -8/Materials -8/Storage -8/Recycling -8/Scraptown (discovered 2 exits: *Fac x2) -6/Factory -5/Factory -5/Upper Caves -5/Upper Caves -5/Warlord -4/Proximity Caves -4/Factory (discovered 1 exit: Upp) History --------- Turn | Location | Event 3 | -11/Scrapyard | Discovered new exit (range 16) 67 | -11/Scrapyard | Entered Materials 311 | -10/Materials | Build established: Mutant 337 | -10/Materials | Discovered new exit (range 12) 524 | -10/Materials | Discovered new exit (range 7) 832 | -10/Materials | Discovered new exit (range 7) 911 | -10/Materials | Discovered new exit (range 12) 1170 | -10/Materials | Discovered new exit (range 15) 1228 | -10/Materials | Identified exit to Materials 1386 | -10/Materials | Entered another Materials area 1386 | -9/Materials | Evolved 2 slots: Propulsion x1, Utility x1 1948 | -9/Materials | Discovered new exit (range 8) 1968 | -9/Materials | Identified exit to Materials 2116 | -9/Materials | Lost 3 parts (1n1u1w) 2131 | -9/Materials | Core integrity fell below 50% 2176 | -9/Materials | Lost 4 parts (1p2n1w) 2177 | -9/Materials | Destroyed 7 combat bots 2242 | -9/Materials | Discovered new exit (range 14) 2273 | -9/Materials | Identified exit to Mines 2522 | -9/Materials | Discovered exit to Materials (range 8) 2705 | -9/Materials | Core integrity fell below 20% 2914 | -9/Materials | Entered another Materials area 2914 | -8/Materials | Evolved 2 slots: Propulsion x1, Utility x1 2941 | -8/Materials | Discovered new exit (range 14) 2973 | -8/Materials | Identified exit to Storage 2975 | -8/Materials | Entered Storage 3074 | -8/Storage | Identified exit to Recycling 3139 | -8/Storage | Used back door to open Recycling access 3149 | -8/Storage | Entered Recycling 3572 | -8/Recycling | Scanned before Scraplab entrance 3615 | -8/Recycling | Entered Scraplab 3634 | -8/Recycling | Discovered new exit (range 2) 3634 | -8/Recycling | Identified exit to Scraptown 3639 | -8/Recycling | Entered Scraptown 3639 | -8/Scraptown | System corruption cleaned by C-Scrubber 4196 | -8/Scraptown | Discovered new exit (range 3) 4198 | -8/Scraptown | Identified exit to Factory 4395 | -8/Scraptown | Visited Bundlers 4542 | -8/Scraptown | Visited Junk Repository 4601 | -8/Scraptown | Visited The Evicted 5011 | -8/Scraptown | Visited Shadow of the Wyrm 5076 | -8/Scraptown | Visited Cyclists 5148 | -8/Scraptown | Visited UFD Registry 5148 | -8/Scraptown | Registered with UFD as "Phasetube" 5187 | -8/Scraptown | Entered Cyclist Reading Room 5237 | -8/Scraptown | Visited Junk Repository 5568 | -8/Scraptown | Heard Great Nut preacher, LISTEN AND RECITE! 5713 | -8/Scraptown | Visited Infowarlord's Domain 5729 | -8/Scraptown | Found Active Sensor Suite 5771 | -8/Scraptown | Visited Scrapoid Research Area 5814 | -8/Scraptown | Visited DA-N13 Charitable Foundation 5836 | -8/Scraptown | Found DCF Scrap (31 items) 6212 | -8/Scraptown | Visited Science Testing Area 6249 | -8/Scraptown | Visited Analyses Database 6300 | -8/Scraptown | Visited Abandonware Association 6330 | -8/Scraptown | Learned abandonware demo "REVENGE.EXE" 6594 | -8/Scraptown | Visited Derelict Rescue Squad 6623 | -8/Scraptown | Found DRS Beacon 6672 | -8/Scraptown | Visited Scrapoid Pod Storage 6719 | -8/Scraptown | Visited Modified Component R&D 7069 | -8/Scraptown | Met Optimus 7069 | -8/Scraptown | Accepted into 0bPrime 7277 | -8/Scraptown | Found Scrap Suit 7310 | -8/Scraptown | Discovered exit to Factory (range 3) 7315 | -8/Scraptown | Entered Factory 7315 | -6/Factory | Evolved 4 slots: Propulsion x2, Utility x2 8036 | -6/Factory | System corruption reached 10% 8342 | -6/Factory | Discovered new exit (range 16) 8532 | -6/Factory | Entered another Factory area 8532 | -5/Factory | Evolved 2 slots: Utility x2 8613 | -5/Factory | Loaded intel: 8 recycling unit locations 9094 | -5/Factory | Build established: Scavenger-Skirmisher 9141 | -5/Factory | Lost 3 parts (2n1u) 9432 | -5/Factory | First assault squad dispatched 9993 | -5/Factory | Build established: Scavenger-Mutant 10100 | -5/Factory | Lost 3 parts (1n2u) 10102 | -5/Factory | Learned location of Protoforge (-3) 10129 | -5/Factory | Discovered new exit (range 15) 10231 | -5/Factory | System corruption reached 10% 10320 | -5/Factory | Identified exit to Upper Caves 10355 | -5/Factory | Entered Upper Caves 10463 | -5/Upper Caves | Entered a destroyed Warlord outpost 10889 | -5/Upper Caves | Learned Factory security intel 11058 | -5/Upper Caves | Discovered new exit (range 14) 11104 | -5/Upper Caves | Identified exit to Upper Caves 11105 | -5/Upper Caves | Entered another Upper Caves area 11109 | -5/Upper Caves | Build established: Mutant 11112 | -5/Upper Caves | Learned Factory garrison access intel 11655 | -5/Upper Caves | Attracted the attention of an 0b10 checkpoint 11716 | -5/Upper Caves | Discovered new exit (range 13) 11725 | -5/Upper Caves | Attacked by a faux Warlord 11818 | -5/Upper Caves | Identified exit to Warlord 11820 | -5/Upper Caves | Entered Warlord 11820 | -5/Warlord | Accompanied by 2 allies 11900 | -5/Warlord | System corruption cleaned by Quarantine Array 11944 | -5/Warlord | Discovered new exit (range 9) 11961 | -5/Warlord | Identified exit to Proximity Caves 11963 | -5/Warlord | Entered Proximity Caves 11963 | -4/Proximity Caves | Accompanied by 2 allies 11966 | -4/Proximity Caves | Spotter reported a threat 12196 | -4/Proximity Caves | Attracted the attention of an 0b10 checkpoint 12260 | -4/Proximity Caves | Discovered new exit (range 12) 12276 | -4/Proximity Caves | Identified exit to Factory 12278 | -4/Proximity Caves | Entered Factory 12278 | -4/Factory | Evolved 2 slots: Power x1, Propulsion x1 12279 | -4/Factory | Identified exit to Upper Caves 12281 | -4/Factory | Loaded intel: 4 garrison access locations 12634 | -4/Factory | Build established: Scavenger-Mutant 12721 | -4/Factory | Loaded intel: 8 recycling unit locations 12818 | -4/Factory | Garrison activated, responded to threat 12927 | -4/Factory | Lost 19 parts (4p8n4u3w) 13213 | -4/Factory | Lost 3 parts (1p2n) 13227 | -4/Factory | Core integrity fell below 50% 13431 | -4/Factory | Lost 3 parts (2n1u) 13483 | -4/Factory | Lost 5 parts (4n1w) 13513 | -4/Factory | System corruption reached 10% 13537 | -4/Factory | Lost 4 parts (1p1n2u) 13919 | -4/Factory | Released all parts (14) 13923 | -4/Factory | Core integrity fell below 20% 13948 | -4/Factory | Lost 4 parts (1p3n) 13967 | -4/Factory | Spotted B-86 Titan 14010 | -4/Factory | Destroyed by S-27 Virus with Autogun Last Messages --------------- 13970_ Slug penetrates Wall. 13971_ Dropped Hvy. Gauss Cannon. 13972_ Acquired Imp. Gyrokinetic Inverter. 13973_ System corrupted: Heat flow error (+189). 13974_ Cld. Field Propulsion Drive destroyed. 13974_ Slug penetrates Manufacturing Mainframe. 13974_ Manufacturing Mainframe disabled. 13975_ Slug penetrates Wall. 13975_ Manufacturing Mainframe disabled. 13975_ ALERT: Hostiles spotted, dispatching reinforcements to Terminal F014. 13979_ Acquired Phase Shifter. 13979_ Recalibrator destroyed. 13998_ System corrupted: Energy discharge (-54). 14000_ K-01 Serf destroyed. 14001_ K-01 Serf collects debris. 14005_ Mic. Fission Core destroyed. 14006_ Phase Shifter destroyed. 14006_ K-01 Serf collects debris. 14009_ K-01 Serf cleans the Fusion Modulator. Map ----- +----------------------------------------------------+ | ????????????????????# #???????????# # | | ????????????????????# ""G"" #?######????# # | | ????????????????????# ! " " #?# ?? # # | | ????????????????????# #?# "" # # | | ????????????????????# #?# "" # # | | ????????????????????# #?# """ # # | | ????????????????????# #?# """ # # | | ????????????????????# """" """" #?# """ # # | | ????????????????????# """" """" #???!! # # | | ????????????????????# """" """" #????? ?# # | | ????????????????????# """" """" #????###+#### # | | ????????????????????# #????# *## # | | ??????????????#?????#######/########### T" | | ??????????????# ####### sss " | | ??????????????# s s######### # | | ??????????????+ *%! k s #???????# = ### ## | | ??????????????# #???????### ###?# #? | | ??????????????## ########s #?????????# #???# #? | | ????????????????????????# #?????????# #???# #? | | ????????????????????????# #?????????#+#???#+#? | | ????????????????????????# #??????????????????? | | ????????????????????????# u #??????????????????? | | ????????????????????????# ##########?????????? | | ????????????????????????# #????????# | | ????????????????????????# +????????# | | ????????????????????????#@ k """?????????# | | ????????????????????????# """ """ ""??????????# | | ????????????????????????# """ """ ""??????????# | | ????????????????????????# """ """ ???????????# | | ????????????????????????# ???????????????# | | ????????????????????????# """ """???????????????# | | ????????????????????????# """ "?????????????????# | | ????????????????????????# """ "?????????????????# | | ????????????????????????# ????????????#T ##### | | ????????????????????????? ""??????????? | | ????????????????????????? "???????????? | | ????????????????????????? "???????????? | | ????????????????????????? ????????????? | | ????????????????????????? ????????????? | | ?????????????????????????###??????????????#### | | ?????????????????????????????????????????????# | | ?????????????????????????????????????????????# | | ?????????????????????????????????????????????# | | ?????????????????????????????????????????????# ? | | ?????????????????????????????????????????????# ? | | ?????????????????????????????????????????????# ?? | | ?????????????????????????????????????????????????? | | ?????????????????????????????????????????????????? | | ?????????????????????????????????????????????????? | | ?????????????????????????????????????????????????? | +----------------------------------------------------+ Best States ------------- Heat Dissipation 62 Energy Generation 35 Energy Capacity 530 Matter Stores 300 Matter Capacity 300 Sight Range 16 Robot Scan Range 20 Terrain Scan Density 10 ECM Strength 2 Armor Coverage 600 Resistance: KI 30 Resistance: TH 30 Resistance: EM 15 Core Shielding 20 Propulsion Shielding 33 Point Defense Rating 80 Phase Shifting 5 Evasion (%) 67 Targeting Accuracy 6 Target Analysis 8 Recoil Reduction 7 Item Schematics ----------------- None Robot Schematics ------------------ None Fabricated ------------ Nothing Repaired ---------- Nothing Studied --------- Med. Laser | -9/Materials | Hacked Magnetic Acceleration Cannon | -6/Factory | Hacked Imp. Treads | -5/Factory | Hacked Alien Tech Used ----------------- None Achievements -------------- None Challenges ------------ None Game ------ Seed ArcBorgEngine Manual? 0 Play Time 01:59:58 Cumulative 85.9 hours Start 2026.07.14 @ 14:56:51 End 2026.07.14 @ 17:32:44 Sessions 1 Manual Loads 0 Difficulty Rogue Special Mode None Game No. 97 Rogue 43 Adventurer 54 Explorer 0 Win Type - Total 2 Types 2/0/0/0/0/0/0/0/0/0 Lore% 39 Gallery% 45 Achievement% 42 Wizard Run 0 Options --------- Layout 1 ASCII 0 Keyboard 0 Movement Mouse Keybinds 1 Fullscreen 1 Font 32/Tamsyn Map View 50x35 Zoom Use 0% Tactical HUD 1 Map Filters NONE Filters NONE Steam 1 RUN: b70f7fc9-4779-4940-bfb4-72b7f0d7f036